fUSD/lending_fUSD_20240521
["ID","MTS","AMOUNT","RATE_DAILY","PERIOD"]
[327681902,1716313850136,-151.0,0.0003041,7]
[327681903,1716313850146,-1026.75,0.0003041,6]
[327681904,1716313850156,-500.0,0.0003041,6]
[327681905,1716313850165,-151.0,0.0003041,7]
[327681906,1716313850174,-2751.56,0.0003041,6]
[327681907,1716313850184,-1522.76,0.0003041,6]
[327681908,1716313850192,-1164.86,0.0003041,6]
[327681909,1716313850202,-3228.02,0.0003041,6]
[327681910,1716313850211,-500.0,0.0003041,6]
[327681911,1716313850221,-510.81,0.0003041,6]
[327681912,1716313850230,-500.0,0.0003041,6]
[327681913,1716313850241,-500.0,0.0003041,6]
[327681914,1716313850250,-500.0,0.0003041,6]
[327681915,1716313850455,-2996.41,0.0003041,6]
[327681916,1716313850466,-500.0,0.0003041,6]
[327681917,1716313850476,-500.0,0.0003041,6]
[327681918,1716313850486,-215.019449,0.0003041,7]
[327681919,1716313850495,-3003.38,0.0003041,6]
[327681920,1716313850504,-1049.49,0.0003041,6]
[327681921,1716313850515,-500.0,0.0003041,6]
[327681922,1716313850524,-500.0,0.0003041,6]
[327681923,1716313850533,-534.48,0.0003041,6]
[327681924,1716313850543,-1961.85,0.0003041,6]
[327681925,1716313850552,-2787.75,0.0003041,6]
[327681926,1716313850562,-1378.25,0.0003041,6]
[327681927,1716313850571,-500.0,0.0003041,6]
[327681928,1716313850581,-2125.68,0.0003041,6]
[327681929,1716313850593,-1295.48,0.0003041,6]
[327681930,1716313850602,-500.0,0.0003041,6]
[327681931,1716313850612,-521.0997461,0.0003041,6]
[327681932,1716313850621,-4986.61,0.0003041,6]
[327681933,1716313850631,-500.0,0.0003041,6]
[327681934,1716313850640,-1925.65,0.0003041,6]
[327681935,1716313850650,-502.53,0.0003041,6]
[327681936,1716313850661,-500.0,0.0003041,6]
[327681937,1716313850671,-557.17,0.0003041,6]
[327681938,1716313850681,-500.0,0.0003041,6]
[327681939,1716313850691,-365.31550258,0.0003041,6]
[327681940,1716313850702,-887.65,0.0003041,6]
[327681941,1716313850713,-500.0,0.0003041,6]
[327681942,1716313850725,-1681.79,0.0003041,6]
[327681943,1716313850736,-812.91,0.0003041,6]
[327681944,1716313850746,-692.48,0.0003041,2]
[327681945,1716313850756,-1802.71,0.0003041,6]
[327681946,1716313850765,-500.0,0.0003041,6]
[327681947,1716313850775,-655.15,0.0003041,6]
[327681948,1716313850786,-500.0,0.0003041,6]
[327681949,1716313850795,-500.0,0.0003041,6]
[327681950,1716313850804,-500.0,0.0003041,6]
[327681951,1716313850813,-151.0,0.0003041,7]
[327681952,1716313850822,-500.0,0.0003041,6]
[327681953,1716313850832,-572.88,0.0003041,6]
[327681954,1716313850842,-3113.72,0.0003041,6]
[327681955,1716313850852,-186.43515123,0.0003041,6]
[327681956,1716313850861,-524.63,0.0003041,6]
[327681957,1716313850871,-151.0,0.0003041,7]
[327681958,1716313850880,-500.0,0.0003041,6]
[327681959,1716313850889,-2450.63,0.0003041,6]
[327681960,1716313850899,-500.0,0.0003041,6]
[327681961,1716313850908,-500.0,0.0003041,6]
[327681962,1716313850917,-500.0,0.0003041,6]
[327681963,1716313850926,-1997.65,0.0003041,6]
[327681964,1716313850935,-151.0,0.0003041,7]
[327681965,1716313850945,-500.0,0.0003041,6]
[327681966,1716313850954,-1292.71,0.0003041,6]
[327681967,1716313850963,-564.20560028,0.0003041,6]
[327681968,1716313850976,-500.0,0.0003041,6]
[327681969,1716313850986,-500.0,0.0003041,6]
[327681970,1716313850995,-500.0,0.0003041,6]
[327681971,1716313851005,-500.0,0.0003041,6]
[327681972,1716313851017,-500.0,0.0003041,2]
[327681973,1716313851028,-1061.26,0.0003041,6]
[327681974,1716313851038,-551.8,0.0003041,6]
[327681975,1716313851050,-500.0,0.0003041,6]
[327681976,1716313851059,-500.0,0.0003041,6]
[327681977,1716313851071,-500.0,0.0003041,6]
[327681978,1716313851081,-5977.44,0.0003041,6]
[327681979,1716313851091,-510.51528566,0.0003041,6]
[327681980,1716313851101,-2589.42,0.0003041,6]
[327681981,1716313851111,-1960.62,0.0003041,6]
[327681982,1716313851120,-500.0,0.0003041,6]
[327681983,1716313851129,-926.95,0.0003041,6]
[327681984,1716313851141,-5427.38,0.0003041,6]
[327681985,1716313851150,-151.0,0.0003041,7]
[327681986,1716313851160,-500.0,0.0003041,6]
[327681987,1716313851171,-700.04,0.0003041,6]
[327681988,1716313851181,-507.25862728,0.0003041,6]
[327681989,1716313851191,-500.0,0.0003041,6]
[327681990,1716313851201,-151.0,0.0003041,7]
[327681991,1716313851210,-1305.56,0.0003041,6]
[327681992,1716313851221,-211.97282222,0.0003041,6]
[327681993,1716313851231,-686.7,0.0003041,6]
[327681994,1716313851240,-3111.49,0.0003041,6]
[327681995,1716313851249,-151.0,0.0003041,7]
[327681996,1716313851258,-309.963824,0.0003041,7]
[327681997,1716313851268,-19457.3,0.0003041,6]
[327681998,1716313851278,-6060.34,0.0003041,6]
[327681999,1716313851287,-500.0,0.0003041,6]
[327682000,1716313851296,-998.13,0.0003041,6]
[327682001,1716313851306,-1047.32,0.00030575,2]
[327682002,1716313851316,-150.0,0.00030575,2]
[327682003,1716313851325,-163.42,0.00030575,2]
[327682004,1716313851334,-150.0,0.00030575,2]
[327682005,1716313851346,-1845.99542266,0.00030584,2]
[327682006,1716313851355,-154.22434037,0.00030649,2]
[327682007,1716313851365,-121032.58060904,0.00030684,21]
[327682008,1716313851374,-500.0,0.00030684,6]
[327682009,1716313851383,-500.0,0.00030684,6]
[327682010,1716313851392,-503.69,0.00030684,6]
[327682011,1716313851402,-580.57,0.00030684,6]
[327682012,1716313851411,-678.79,0.00030684,6]
[327682013,1716313851420,-1048.52,0.00030684,6]
[327682014,1716313851430,-500.0,0.00030684,6]
[327682015,1716313851439,-637.75,0.00030684,6]
[327682016,1716313851448,-500.0,0.00030684,6]
[327682017,1716313851458,-933.31,0.00030684,6]
[327682018,1716313851467,-500.0,0.00030684,6]
[327682019,1716313851476,-512.08,0.00030684,6]
[327682020,1716313851485,-295.67426649,0.00030684,6]
[327682021,1716313851494,-500.0,0.00030684,6]
[327682022,1716313851503,-500.0,0.00030684,6]
[327682023,1716313851512,-500.0,0.00030684,6]
[327682024,1716313851521,-500.0,0.00030684,6]
[327682025,1716313851530,-500.0,0.00030684,6]
[327682026,1716313851540,-500.0,0.00030684,6]
[327682027,1716313851549,-500.0,0.00030684,6]
[327682028,1716313851559,-500.0,0.00030684,6]
[327682029,1716313851568,-500.0,0.00030684,6]
[327682030,1716313851577,-788.09,0.00030684,6]
[327682031,1716313851586,-504.79,0.00030684,6]
[327682032,1716313851595,-620.36,0.00030684,6]
[327682033,1716313851605,-500.0,0.00030684,6]
[327682034,1716313851614,-500.0,0.00030684,6]
[327682035,1716313851623,-598.13,0.00030684,6]
[327682036,1716313851632,-500.0,0.00030684,6]
[327682037,1716313851642,-500.0,0.00030684,6]
[327682038,1716313851651,-500.0,0.00030684,6]
[327682039,1716313851660,-500.0,0.00030684,6]
[327682040,1716313851669,-500.0,0.00030684,6]
[327682041,1716313851678,-500.0,0.00030684,6]
[327682042,1716313851687,-500.0,0.00030684,6]
[327682043,1716313851697,-500.0,0.00030684,6]
[327682044,1716313851707,-500.0,0.00030684,6]
[327682045,1716313851716,-500.0,0.00030684,6]
[327682046,1716313851725,-607.58,0.00030684,6]
[327682047,1716313851735,-500.0,0.00030684,6]
[327682048,1716313851744,-618.65,0.00030684,6]
[327682049,1716313851753,-500.0,0.00030684,6]
[327682050,1716313851762,-517.29,0.00030684,6]
[327682051,1716313851772,-500.0,0.00030684,6]
[327682052,1716313851781,-704.45,0.00030684,6]
[327682053,1716313851790,-500.0,0.00030684,6]
[327682054,1716313851799,-500.0,0.00030684,6]
[327682055,1716313851808,-500.0,0.00030684,6]
[327682056,1716313851817,-500.0,0.00030684,6]
[327682057,1716313851827,-500.0,0.00030684,6]
[327682058,1716313851836,-500.0,0.00030684,6]
[327682059,1716313851847,-879.68,0.00030684,6]
[327682060,1716313851857,-500.0,0.00030684,6]
[327682061,1716313851867,-500.0,0.00030684,6]
[327682062,1716313851876,-500.0,0.00030684,6]
[327682063,1716313851885,-591.15,0.00030684,6]
[327682064,1716313851895,-500.0,0.00030684,6]
[327682065,1716313851904,-500.0,0.00030684,6]
[327682066,1716313851914,-500.0,0.00030684,6]
[327682067,1716313851923,-565.36272346,0.00030684,6]
[327682068,1716313851932,-500.0,0.00030684,6]
[327682069,1716313851941,-500.0,0.00030684,6]
[327682070,1716313851951,-463.28826062,0.00030684,6]
[327682071,1716313851960,-500.0,0.00030684,6]
[327682072,1716313851974,-500.0,0.00030684,6]
[327682073,1716313851983,-1788.63,0.00030684,6]
[327682074,1716313851992,-500.0,0.00030684,6]
[327682075,1716313852001,-500.0,0.00030684,6]
[327682076,1716313852011,-500.0,0.00030684,6]
[327682077,1716313852020,-500.0,0.00030684,6]
[327682078,1716313852030,-837.66,0.00030684,6]
[327682079,1716313852039,-856.76,0.00030684,6]
[327682080,1716313852048,-500.0,0.00030684,6]
[327682081,1716313852058,-500.0,0.00030684,6]
[327682082,1716313852068,-500.0,0.00030684,6]
[327682083,1716313852077,-561.17,0.00030684,6]
[327682084,1716313852086,-641.1,0.00030684,6]
[327682085,1716313852097,-668.81,0.00030684,6]
[327682086,1716313852107,-194.90176833,0.00030684,6]
[327682087,1716313852116,-752.65,0.00030684,6]
[327682088,1716313852126,-563.35,0.00030684,6]
[327682089,1716313852135,-853.3,0.00030684,6]
[327682090,1716313852144,-500.0,0.00030684,6]
[327682091,1716313852153,-565.02,0.00030684,6]
[327682092,1716313852162,-796.43,0.00030684,6]
[327682093,1716313852171,-500.0,0.00030684,6]
[327682094,1716313852180,-500.0,0.00030684,6]
[327682095,1716313852190,-518.76,0.00030684,6]
[327682096,1716313852199,-500.0,0.00030684,6]
[327682097,1716313852209,-500.0,0.00030684,6]
[327682098,1716313852218,-500.0,0.00030684,6]
[327682099,1716313852227,-500.0,0.00030684,6]
[327682100,1716313852237,-500.0,0.00030684,6]
[327682101,1716313852246,-537.82,0.00030684,6]
[327682102,1716313852256,-437.09,0.00030684,6]
[327682103,1716313852265,-593.91,0.00030684,6]
[327682104,1716313852274,-707.8,0.00030684,6]
[327682105,1716313852284,-500.0,0.00030684,6]
[327682106,1716313852294,-500.0,0.00030684,6]
[327682107,1716313852304,-835.97,0.00030684,6]
[327682108,1716313852313,-500.0,0.00030684,6]
[327682109,1716313852323,-500.0,0.00030684,6]
[327682110,1716313852332,-500.0,0.00030684,6]
[327682111,1716313852342,-559.06,0.00030684,6]
[327682112,1716313852352,-500.0,0.00030684,6]
[327682113,1716313852361,-648.06,0.00030684,6]
[327682114,1716313852371,-458.74058193,0.00030684,6]
[327682115,1716313852381,-326.23,0.00030684,6]
[327682116,1716313852390,-500.0,0.00030684,6]
[327682117,1716313852399,-500.0,0.00030684,6]
[327682118,1716313852408,-629.23,0.00030684,6]
[327682119,1716313852417,-794.39,0.00030684,6]
[327682120,1716313852427,-500.0,0.00030684,6]
[327682121,1716313852436,-500.0,0.00030684,6]
[327682122,1716313852445,-272.48,0.00030684,6]
[327682123,1716313852454,-632.69,0.00030684,6]
[327682124,1716313852463,-500.0,0.00030684,6]
[327682125,1716313852472,-1513.67,0.00030684,6]
[327682126,1716313852481,-500.0,0.00030684,6]
[327682127,1716313852490,-930.6,0.00030684,6]
[327682128,1716313852500,-500.0,0.00030684,6]
[327682129,1716313852509,-500.0,0.00030684,6]
[327682130,1716313852518,-1288.05,0.00030684,6]
[327682131,1716313852527,-500.0,0.00030684,6]
[327682132,1716313852536,-500.0,0.00030684,6]
[327682133,1716313852545,-500.0,0.00030684,6]
[327682134,1716313852554,-500.0,0.00030684,6]
[327682135,1716313852563,-500.0,0.00030684,6]
[327682136,1716313852573,-500.0,0.00030684,6]
[327682137,1716313852582,-500.0,0.00030684,6]
[327682138,1716313852592,-500.0,0.00030684,6]
[327682139,1716313852601,-605.36,0.00030684,6]
[327682140,1716313852611,-948.69,0.00030684,6]
[327682141,1716313852620,-178.93,0.00030684,6]
[327682142,1716313852630,-500.0,0.00030684,6]
[327682143,1716313852639,-500.0,0.00030684,6]
[327682144,1716313852649,-500.0,0.00030684,6]
[327682145,1716313852658,-785.32,0.00030684,6]
[327682146,1716313852667,-624.81,0.00030684,6]
[327682147,1716313852676,-500.0,0.00030684,6]
[327682148,1716313852686,-500.0,0.00030684,6]
[327682149,1716313852695,-1028.13,0.00030684,6]
[327682150,1716313852704,-579.36,0.00030684,6]
[327682151,1716313852713,-500.0,0.00030684,6]
[327682152,1716313852723,-418.07570733,0.00030684,6]
[327682153,1716313852732,-500.0,0.00030684,6]
[327682154,1716313852741,-587.41,0.00030684,6]
[327682155,1716313852751,-1664.19,0.00030684,6]
[327682156,1716313852760,-725.53,0.00030684,6]
[327682157,1716313852769,-500.0,0.00030684,6]
[327682158,1716313852846,-584.62,0.00030684,6]
[327682159,1716313852855,-533.41,0.00030684,6]
[327682160,1716313852864,-500.0,0.00030684,6]
[327682161,1716313852873,-1067.84,0.00030684,6]
[327682162,1716313852882,-272.65314875,0.00030684,6]
[327682163,1716313852891,-641.82,0.00030684,6]
[327682164,1716313852900,-552.41,0.00030684,6]
[327682165,1716313852909,-580.9,0.00030684,6]
[327682166,1716313852918,-500.0,0.00030684,6]
[327682167,1716313852927,-690.08,0.00030684,6]
[327682168,1716313852936,-500.0,0.00030684,6]
[327682169,1716313852945,-1145.1,0.00030684,6]
[327682170,1716313852954,-576.62,0.00030684,6]
[327682171,1716313852963,-500.0,0.00030684,6]
[327682172,1716313852973,-829.09,0.00030684,6]
[327682173,1716313852986,-1375.15,0.00030684,6]
[327682174,1716313852995,-500.0,0.00030684,6]
[327682175,1716313853004,-663.55,0.00030684,6]
[327682176,1716313853013,-500.0,0.00030684,6]
[327682177,1716313853024,-630.27,0.00030684,6]
[327682178,1716313853033,-856.08,0.00030684,6]
[327682179,1716313853042,-500.0,0.00030684,6]
[327682180,1716313853053,-816.6,0.00030684,6]
[327682181,1716313853063,-654.06,0.00030684,6]
[327682182,1716313853072,-641.27453577,0.00030684,6]
[327682183,1716313853081,-716.43,0.00030684,6]
[327682184,1716313853090,-1509.0,0.00030684,6]
[327682185,1716313853099,-1081.87,0.00030684,6]
[327682186,1716313853109,-872.69,0.00030684,6]
[327682187,1716313853118,-500.0,0.00030684,6]
[327682188,1716313853127,-990.26,0.00030684,6]
[327682189,1716313853136,-613.1,0.00030684,6]
[327682190,1716313853145,-500.0,0.00030684,6]
[327682191,1716313853154,-1133.38,0.00030684,6]
[327682192,1716313853164,-500.0,0.00030684,6]
[327682193,1716313853174,-500.0,0.00030684,6]
[327682194,1716313853183,-264.72778263,0.00030684,6]
[327682195,1716313853192,-500.0,0.00030684,6]
[327682196,1716313853201,-500.0,0.00030684,6]
[327682197,1716313853212,-731.7,0.00030684,6]
[327682198,1716313853222,-706.25,0.00030684,6]
[327682199,1716313853231,-500.0,0.00030684,6]
[327682200,1716313853240,-694.68,0.00030684,6]
[327682201,1716313853250,-775.16,0.00030684,6]
[327682202,1716313853259,-500.0,0.00030684,6]
[327682203,1716313853269,-500.0,0.00030684,6]
[327682204,1716313853278,-933.32,0.00030684,6]
[327682205,1716313853289,-500.0,0.00030684,6]
[327682206,1716313853299,-962.37,0.00030684,6]
[327682207,1716313853309,-1103.13,0.00030684,6]
[327682208,1716313853318,-500.0,0.00030684,6]
[327682209,1716313853328,-500.0,0.00030684,6]
[327682210,1716313853339,-500.0,0.00030684,6]
[327682211,1716313853348,-634.85,0.00030684,6]
[327682212,1716313853357,-664.64,0.00030684,6]
[327682213,1716313853367,-995.11,0.00030684,6]
[327682214,1716313853376,-500.0,0.00030684,6]
[327682215,1716313853385,-500.0,0.00030684,6]
[327682216,1716313853395,-500.0,0.00030684,6]
[327682217,1716313853405,-500.0,0.00030684,6]
[327682218,1716313853416,-1328.69,0.00030684,6]
[327682219,1716313853425,-500.0,0.00030684,6]
[327682220,1716313853434,-531.24,0.00030684,6]
[327682221,1716313853443,-500.0,0.00030684,6]
[327682222,1716313853453,-631.92,0.00030684,6]
[327682223,1716313853462,-1121.95,0.00030684,6]
[327682224,1716313853472,-629.85,0.00030684,6]
[327682225,1716313853481,-500.0,0.00030684,6]
[327682226,1716313853490,-500.0,0.00030684,6]
[327682227,1716313853498,-564.01,0.00030684,6]
[327682228,1716313853508,-589.77,0.00030684,6]
[327682229,1716313853517,-500.0,0.00030684,6]
[327682230,1716313853527,-500.0,0.00030684,6]
[327682231,1716313853536,-500.0,0.00030684,6]
[327682232,1716313853546,-150.0,0.00030684,6]
[327682233,1716313853555,-500.0,0.00030684,6]
[327682234,1716313853566,-500.0,0.00030684,6]
[327682235,1716313853575,-500.0,0.00030684,6]
[327682236,1716313853585,-1270.39,0.00030684,6]
[327682237,1716313853595,-805.53,0.00030684,6]
[327682238,1716313853604,-568.14,0.00030684,6]
[327682239,1716313853614,-790.84,0.00030684,6]
[327682240,1716313853623,-500.0,0.00030684,6]
[327682241,1716313853632,-591.9,0.00030684,6]
[327682242,1716313853641,-151.0,0.00030684,7]
[327682243,1716313853650,-820.19,0.00030684,6]
[327682244,1716313853661,-500.0,0.00030684,6]
[327682245,1716313853670,-571.33,0.00030684,6]
[327682246,1716313853679,-634.19,0.00030684,6]
[327682247,1716313853688,-570.98,0.00030684,6]
[327682248,1716313853697,-537.12,0.00030684,6]
[327682249,1716313853706,-500.0,0.00030684,6]
[327682250,1716313853716,-498.85495617,0.00030684,6]
[327682251,1716313853725,-500.0,0.00030684,6]
[327682252,1716313853735,-629.49,0.00030684,6]
[327682253,1716313853745,-1404.87,0.00030684,6]
[327682254,1716313853754,-500.0,0.00030684,6]
[327682255,1716313853764,-500.0,0.00030684,6]
[327682256,1716313853773,-500.0,0.00030684,6]
[327682257,1716313853783,-754.26,0.00030684,6]
[327682258,1716313853792,-648.43,0.00030684,6]
[327682259,1716313853802,-1610.22,0.00030684,6]
[327682260,1716313853811,-500.0,0.00030684,6]
[327682261,1716313853822,-350.384779,0.00030684,7]
[327682262,1716313853833,-350.384779,0.00030684,7]
[327682263,1716313853844,-273.72388614,0.00030684,6]
[327682264,1716313853853,-853.67,0.00030684,6]
[327682265,1716313853863,-997.78,0.00030684,6]
[327682266,1716313853872,-772.0,0.00030684,6]
[327682267,1716313853883,-151.0,0.00030684,7]
[327682268,1716313853894,-181.178196,0.00030684,7]
[327682269,1716313853905,-350.384779,0.00030684,7]
[327682270,1716313853914,-500.0,0.00030684,6]
[327682271,1716313853925,-350.384779,0.00030684,7]
[327682272,1716313853935,-971.82,0.00030684,6]
[327682273,1716313853944,-500.0,0.00030684,6]
[327682274,1716313853954,-1224.47,0.00030684,6]
[327682275,1716313853963,-500.0,0.00030684,6]
[327682276,1716313853978,-151.0,0.00030684,7]
[327682277,1716313853988,-151.0,0.00030684,7]
[327682278,1716313853998,-500.0,0.00030684,6]
[327682279,1716313854007,-500.0,0.00030684,6]
[327682280,1716313854018,-500.0,0.00030684,6]
[327682281,1716313854027,-1056.43,0.00030684,6]
[327682282,1716313854036,-255.5953738,0.00030684,6]
[327682283,1716313854046,-4821.01,0.00030684,6]
[327682284,1716313854056,-500.0,0.00030684,6]
[327682285,1716313854067,-1727.8,0.00030684,6]
[327682286,1716313854076,-55029.83,0.00030684,6]
[327682287,1716313854086,-500.0,0.00030684,6]
[327682288,1716313854096,-500.0,0.00030684,6]
[327682289,1716313854104,-765.99,0.00030684,6]
[327682290,1716313854115,-500.0,0.00030684,6]
[327682291,1716313854124,-1260.2,0.00030684,6]
[327682292,1716313854134,-151.0,0.00030684,7]
[327682293,1716313854143,-151.0,0.00030684,7]
[327682294,1716313854153,-1024.33,0.00030684,6]
[327682295,1716313854163,-3266.69,0.00030684,6]
[327682296,1716313854173,-500.0,0.00030684,6]
[327682297,1716313854182,-2068.84,0.00030684,6]
[327682298,1716313854191,-159.62274771,0.00030684,6]
[327682299,1716313854538,-347.87725229,0.00030684,6]
[327682300,1716313854548,-500.0,0.00030684,6]
[327682301,1716313854559,-500.0,0.00030684,6]
[327682302,1716313854569,-500.0,0.00030684,6]
[327682303,1716313854578,-890.74,0.00030684,6]
[327682304,1716313854588,-500.0,0.00030684,6]
[327682305,1716313854599,-1872.57,0.00030684,6]
[327682306,1716313854608,-500.0,0.00030684,6]
[327682307,1716313854618,-650.38,0.00030684,6]
[327682308,1716313854628,-684.99268434,0.00030684,6]
[327682309,1716313854640,-136.97731566,0.00030684,6]
[327682310,1716313854650,-500.0,0.00030684,6]
[327682311,1716313854659,-4296.07,0.00030684,6]
[327682312,1716313854670,-918.56,0.00030684,6]
[327682313,1716313854679,-500.0,0.00030684,6]
[327682314,1716313854689,-465.97299145,0.00030684,6]
[327682315,1716313854701,-34.02700855,0.00030684,6]
[327682316,1716313854711,-500.0,0.00030684,6]
[327682317,1716313854721,-3263.74,0.00030684,6]
[327682318,1716313854730,-4731.98,0.00030684,6]
[327682319,1716313854739,-2014.10332402,0.00030684,6]
[327682320,1716313854752,-1075.60667598,0.00030684,6]
[327682321,1716313854762,-895.39,0.00030684,6]
[327682322,1716313854771,-296.93237407,0.00030684,6]
[327682323,1716313854783,-203.06762593,0.00030684,6]
[327682324,1716313854793,-1210.58,0.00030684,6]
[327682325,1716313854803,-1299.13,0.00030684,6]
[327682326,1716313854813,-1036.27,0.00030684,6]
[327682327,1716313854823,-500.0,0.00030684,6]
[327682328,1716313854832,-500.0,0.00030684,6]
[327682329,1716313854842,-500.0,0.00030684,6]
[327682330,1716313854851,-539.2,0.00030684,6]
[327682331,1716313854861,-207.35647407,0.00030684,6]
[327682332,1716313854873,-292.64352593,0.00030684,6]
[327682333,1716313854883,-5553.31,0.00030684,6]
[327682334,1716313854892,-6153.09963459,0.00030684,6]
[327682335,1716313854954,-3934.04498064,0.00030684,6]
[327682336,1716313856180,-406.78617881,0.00030399,4]
[327682337,1716313856190,-309.963824,0.0003041,7]
[327682338,1716313856202,-9899.89,0.0003041,6]
[327682339,1716313856212,-882.12,0.0003041,6]
[327682340,1716313856223,-2906.67,0.0003041,6]
[327682341,1716313856234,-11319.77538477,0.00030684,6]
[327682342,1716313856244,-1944.57,0.00030684,6]
[327682343,1716313856254,-500.0,0.00030684,6]
[327682344,1716313856264,-500.0,0.00030684,6]
[327682345,1716313856274,-965.03,0.00030684,6]
[327682346,1716313856284,-500.0,0.00030684,6]
[327682347,1716313856295,-380.16,0.00030684,6]
[327682348,1716313856305,-500.0,0.00030684,6]
[327682349,1716313856316,-581.62,0.00030684,6]
[327682350,1716313856326,-818.21,0.00030684,6]
[327682351,1716313856336,-1476.86,0.00030684,6]
[327682352,1716313856347,-1607.16,0.00030684,6]
[327682353,1716313856357,-815.88,0.00030684,6]
[327682354,1716313856367,-1727.6,0.00030684,6]
[327682355,1716313856378,-536.04,0.00030684,6]
[327682356,1716313856388,-500.0,0.00030684,6]
[327682357,1716313856398,-500.0,0.00030684,6]
[327682358,1716313856409,-500.0,0.00030684,6]
[327682359,1716313856419,-8055.41,0.00030684,6]
[327682360,1716313856429,-2836.76,0.00030684,6]
[327682361,1716313856440,-500.0,0.00030684,6]
[327682362,1716313856450,-630.95,0.00030684,6]
[327682363,1716313856460,-1020.55,0.00030684,6]
[327682364,1716313856470,-586.35,0.00030684,6]
[327682365,1716313856481,-500.0,0.00030684,6]
[327682366,1716313856491,-500.0,0.00030684,6]
[327682367,1716313856501,-758.03,0.00030684,6]
[327682368,1716313856511,-1121.0,0.00030684,6]
[327682369,1716313856521,-500.0,0.00030684,6]
[327682370,1716313856531,-500.0,0.00030684,6]
[327682371,1716313856542,-1016.17,0.00030684,6]
[327682372,1716313856552,-501.85,0.00030684,6]
[327682373,1716313856562,-1348.06,0.00030684,6]
[327682374,1716313856571,-655.31,0.00030684,6]
[327682375,1716313856581,-2519.04,0.00030684,6]
[327682376,1716313856592,-500.0,0.00030684,6]
[327682377,1716313856602,-500.0,0.00030684,6]
[327682378,1716313856611,-500.0,0.00030684,6]
[327682379,1716313856621,-678.59,0.00030684,6]
[327682380,1716313856631,-8837.25,0.00030684,6]
[327682381,1716313856641,-964.04,0.00030684,6]
[327682382,1716313856651,-500.0,0.00030684,6]
[327682383,1716313856662,-500.0,0.00030684,6]
[327682384,1716313856672,-500.0,0.00030684,6]
[327682385,1716313856682,-500.0,0.00030684,6]
[327682386,1716313856693,-500.0,0.00030684,6]
[327682387,1716313856704,-2054.65,0.00030684,6]
[327682388,1716313856714,-500.0,0.00030684,6]
[327682389,1716313856724,-1278.74,0.00030684,6]
[327682390,1716313856735,-500.0,0.00030684,6]
[327682391,1716313856745,-500.0,0.00030684,6]
[327682392,1716313856755,-846.95,0.00030684,6]
[327682393,1716313856765,-1084.99,0.00030684,6]
[327682394,1716313856776,-500.0,0.00030684,6]
[327682395,1716313856786,-500.0,0.00030684,6]
[327682396,1716313856796,-1432.8,0.00030684,6]
[327682397,1716313856807,-613.91,0.00030684,6]
[327682398,1716313856817,-500.0,0.00030684,6]
[327682399,1716313856827,-38548.95,0.00030684,6]
[327682400,1716313856837,-500.0,0.00030684,6]
[327682401,1716313856848,-3007.65,0.00030684,6]